fUST/lending_fUST_20250428
["ID","MTS","AMOUNT","RATE_DAILY","PERIOD"]
[359212603,1745820646451,-500.0,0.00032876,2]
[359212604,1745820646460,-513.20210099,0.00032876,2]
[359212605,1745820646470,-400.0,0.00032876,2]
[359212606,1745820646479,-502.49020601,0.00032876,2]
[359212607,1745820646488,-504.89348043,0.00032876,2]
[359212608,1745820646497,-400.0,0.00032876,2]
[359212609,1745820646506,-400.0,0.00032876,2]
[359212610,1745820646515,-400.0,0.00032876,2]
[359212611,1745820646524,-400.0,0.00032876,2]
[359212612,1745820646533,-510.77824011,0.00032876,2]
[359212613,1745820646542,-804.83,0.00032876,2]
[359212614,1745820646551,-400.0,0.00032876,2]
[359212615,1745820646561,-500.0,0.00032876,2]
[359212616,1745820646570,-400.0,0.00032876,2]
[359212617,1745820646579,-501.35516668,0.00032876,2]
[359212618,1745820646588,-400.0,0.00032876,2]
[359212619,1745820646598,-400.0,0.00032876,2]
[359212620,1745820646608,-528.51919263,0.00032876,2]
[359212621,1745820646617,-502.19443607,0.00032876,2]
[359212622,1745820646626,-400.0,0.00032876,2]
[359212623,1745820646635,-505.05410818,0.00032876,2]
[359212624,1745820646645,-400.0,0.00032876,2]
[359212625,1745820646654,-501.81525559,0.00032876,2]
[359212626,1745820646663,-400.0,0.00032876,2]
[359212627,1745820646672,-400.0,0.00032876,2]
[359212628,1745820646681,-400.0,0.00032876,2]
[359212629,1745820646690,-503.57838018,0.00032876,2]
[359212630,1745820646699,-506.32327178,0.00032876,2]
[359212631,1745820646709,-713.88,0.00032876,2]
[359212632,1745820646718,-400.0,0.00032876,2]
[359212633,1745820646727,-400.0,0.00032876,2]
[359212634,1745820646736,-501.33658885,0.00032876,2]
[359212635,1745820646746,-400.0,0.00032876,2]
[359212636,1745820646755,-503.97031951,0.00032876,2]
[359212637,1745820646764,-400.0,0.00032876,2]
[359212638,1745820646773,-400.0,0.00032876,2]
[359212639,1745820646783,-501.03268452,0.00032876,2]
[359212640,1745820646794,-500.77010991,0.00032876,2]
[359212641,1745820646807,-501.70310547,0.00032876,2]
[359212642,1745820646816,-400.0,0.00032876,2]
[359212643,1745820646826,-692.25,0.00032876,2]
[359212644,1745820646835,-400.0,0.00032876,2]
[359212645,1745820646845,-502.17151183,0.00032876,2]
[359212646,1745820646855,-400.0,0.00032876,2]
[359212647,1745820646864,-400.0,0.00032876,2]
[359212648,1745820646875,-400.0,0.00032876,2]
[359212649,1745820646885,-510.11854601,0.00032876,2]
[359212650,1745820646894,-400.0,0.00032876,2]
[359212651,1745820646903,-501.28931654,0.00032876,2]
[359212652,1745820646912,-502.36920662,0.00032876,2]
[359212653,1745820646922,-400.0,0.00032876,2]
[359212654,1745820646931,-503.12888276,0.00032876,2]
[359212655,1745820646940,-400.0,0.00032876,2]
[359212656,1745820646949,-400.0,0.00032876,2]
[359212657,1745820646958,-400.0,0.00032876,2]
[359212658,1745820646968,-416.66,0.00032876,2]
[359212659,1745820646977,-400.0,0.00032876,2]
[359212660,1745820646986,-400.0,0.00032876,2]
[359212661,1745820646995,-507.92307578,0.00032876,2]
[359212662,1745820647004,-501.81232517,0.00032876,2]
[359212663,1745820647013,-400.0,0.00032876,2]
[359212664,1745820647023,-502.05659956,0.00032876,2]
[359212665,1745820647033,-504.41010605,0.00032876,2]
[359212666,1745820647043,-151.0,0.00032876,7]
[359212667,1745820647054,-151.778638,0.00032876,7]
[359212668,1745820647063,-400.0,0.00032876,2]
[359212669,1745820647073,-500.0,0.00032876,2]
[359212670,1745820647084,-400.0,0.00032876,2]
[359212671,1745820647093,-201.19257974,0.00032876,2]
[359212672,1745820647103,-500.84822675,0.00032876,2]
[359212673,1745820647112,-179.50679393,0.00032876,2]
[359212674,1745820647122,-400.0,0.00032876,2]
[359212675,1745820647225,-365.99721662,0.00032876,2]
[359212676,1745820647235,-400.0,0.00032876,2]
[359212677,1745820647245,-400.0,0.00032876,2]
[359212678,1745820647254,-400.0,0.00032876,2]
[359212679,1745820647264,-400.0,0.00032876,2]
[359212680,1745820647273,-400.0,0.00032876,2]
[359212681,1745820647286,-400.0,0.00032876,2]
[359212682,1745820647295,-400.0,0.00032876,2]
[359212683,1745820647305,-511.23218006,0.00032876,2]
[359212684,1745820647314,-400.0,0.00032876,2]
[359212685,1745820647324,-500.93150851,0.00032876,2]
[359212686,1745820647333,-501.66551755,0.00032876,2]
[359212687,1745820647343,-400.0,0.00032876,2]
[359212688,1745820647352,-506.04579739,0.00032876,2]
[359212689,1745820647361,-400.0,0.00032876,2]
[359212690,1745820647371,-501.81552387,0.00032876,2]
[359212691,1745820647380,-500.69407687,0.00032876,2]
[359212692,1745820647389,-400.0,0.00032876,2]
[359212693,1745820647399,-515.46392798,0.00032876,2]
[359212694,1745820647409,-300.0,0.00032876,2]
[359212695,1745820647418,-400.0,0.00032876,2]
[359212696,1745820647427,-400.0,0.00032876,2]
[359212697,1745820647436,-1328.7,0.00032876,2]
[359212698,1745820647445,-400.0,0.00032876,2]
[359212699,1745820647455,-507.45577683,0.00032876,2]
[359212700,1745820647464,-396.25303923,0.00032876,2]
[359212701,1745820647472,-501.35871126,0.00032876,2]
[359212702,1745820647482,-400.0,0.00032876,2]
[359212703,1745820647491,-691.58,0.00032876,2]
[359212704,1745820647501,-311.932208,0.00032877,14]
[359212705,1745820647510,-311.932208,0.00032877,14]
[359212706,1745820647519,-311.932208,0.00032877,14]
[359212707,1745820647528,-311.932208,0.00032877,14]
[359212708,1745820647537,-311.932208,0.00032877,14]
[359212709,1745820647547,-311.932208,0.00032877,14]
[359212710,1745820647556,-311.932208,0.00032877,14]
[359212711,1745820647566,-311.932208,0.00032877,14]
[359212712,1745820647575,-311.932208,0.00032877,14]
[359212713,1745820647584,-311.932208,0.00032877,14]
[359212714,1745820647594,-311.932208,0.00032877,14]
[359212715,1745820647604,-311.932208,0.00032877,14]
[359212716,1745820647613,-311.932208,0.00032877,14]
[359212717,1745820647622,-311.932208,0.00032877,14]
[359212718,1745820647631,-311.932208,0.00032877,14]
[359212719,1745820647640,-311.932208,0.00032877,14]
[359212720,1745820647649,-311.932208,0.00032877,14]
[359212721,1745820647658,-311.932208,0.00032877,14]
[359212722,1745820647667,-311.932208,0.00032877,14]
[359212723,1745820647676,-311.932201,0.00032877,14]
[359212724,1745820647685,-151.93121283,0.00032877,2]
[359212725,1745820647693,-152.60538426,0.00032877,2]
[359212726,1745820647702,-151.0,0.00032877,2]
[359212727,1745820647711,-151.0,0.00032877,2]
[359212728,1745820647719,-198.0,0.00032877,2]
[359212729,1745820647728,-151.0,0.00032877,2]
[359212730,1745820647737,-152.96393014,0.00032877,2]
[359212731,1745820647745,-152.17976104,0.00032877,2]
[359212732,1745820647754,-500.0,0.00032877,2]
[359212733,1745820647763,-500.0,0.00032877,2]
[359212734,1745820647771,-500.0,0.00032877,2]
[359212735,1745820647780,-500.0,0.00032877,2]
[359212736,1745820647789,-500.0,0.00032877,2]
[359212737,1745820647803,-500.0,0.00032877,2]
[359212738,1745820647812,-500.0,0.00032877,2]
[359212739,1745820647821,-500.0,0.00032877,2]
[359212740,1745820647830,-500.0,0.00032877,2]
[359212741,1745820647839,-500.0,0.00032877,2]
[359212742,1745820647848,-500.0,0.00032877,2]
[359212743,1745820647858,-500.0,0.00032877,2]
[359212744,1745820647867,-500.0,0.00032877,2]
[359212745,1745820647877,-500.0,0.00032877,2]
[359212746,1745820647886,-500.0,0.00032877,2]
[359212747,1745820647895,-631.95185766,0.00032877,2]
[359212748,1745820647904,-160.58089159,0.00032899,10]
[359212749,1745820647914,-160.0,0.00032899,10]
[359212750,1745820647923,-49389.56,0.000329,30]
[359212751,1745820647933,-843.41,0.000329,7]
[359212752,1745820647943,-151.0,0.000329,14]
[359212753,1745820647952,-949.210688,0.000329,14]
[359212754,1745820647961,-949.21068758,0.000329,14]
[359212755,1745820647970,-164.71268503,0.00033149,10]
[359212756,1745820647979,-769.76,0.00033149,2]
[359212757,1745820647989,-769.76,0.00033149,2]
[359212758,1745820647999,-769.76,0.00033149,2]
[359212759,1745820648008,-769.76,0.00033149,2]
[359212760,1745820648018,-769.76,0.00033149,2]
[359212761,1745820648027,-769.76,0.00033149,2]
[359212762,1745820648036,-769.76,0.00033149,2]
[359212763,1745820648046,-769.76,0.00033149,2]
[359212764,1745820648055,-769.76,0.00033149,2]
[359212765,1745820648065,-769.79,0.00033149,2]
[359212766,1745820648074,-172.21956263,0.0003315,2]
[359212767,1745820648084,-309.75723227,0.0003315,2]
[359212768,1745820648093,-310.71971212,0.0003315,2]
[359212769,1745820648102,-318.25747451,0.0003315,2]
[359212770,1745820648111,-400.0,0.0003315,2]
[359212771,1745820648120,-400.0,0.0003315,2]
[359212772,1745820648130,-352.05728904,0.0003315,2]
[359212773,1745820648139,-206.99839806,0.0003315,2]
[359212774,1745820648148,-400.0,0.0003315,2]
[359212775,1745820648158,-207.33552569,0.0003315,2]
[359212776,1745820648167,-400.0,0.0003315,2]
[359212777,1745820648176,-206.23036345,0.0003315,2]
[359212778,1745820648186,-208.03296795,0.0003315,2]
[359212779,1745820648195,-400.0,0.0003315,2]
[359212780,1745820648204,-204.36432316,0.0003315,2]
[359212781,1745820648214,-204.1727272,0.0003315,2]
[359212782,1745820648223,-206.82702246,0.0003315,2]
[359212783,1745820648232,-203.75674153,0.0003315,2]
[359212784,1745820648242,-207.45125657,0.0003315,2]
[359212785,1745820648251,-204.53325592,0.0003315,2]
[359212786,1745820648260,-400.0,0.0003315,2]
[359212787,1745820648269,-203.04092463,0.0003315,2]
[359212788,1745820648278,-250.39994763,0.0003315,2]
[359212789,1745820648288,-209.55463482,0.0003315,2]
[359212790,1745820648297,-205.71165671,0.0003315,2]
[359212791,1745820648306,-201.97093657,0.0003315,2]
[359212792,1745820648315,-400.0,0.0003315,2]
[359212793,1745820648325,-400.0,0.0003315,2]
[359212794,1745820648334,-205.54750228,0.0003315,2]
[359212795,1745820648343,-400.0,0.0003315,2]
[359212796,1745820648352,-400.0,0.0003315,2]
[359212797,1745820648362,-204.42303344,0.0003315,2]
[359212798,1745820648371,-500.0,0.0003315,2]
[359212799,1745820648380,-207.78616293,0.0003315,2]
[359212800,1745820648389,-400.0,0.0003315,2]
[359212801,1745820648399,-400.0,0.0003315,2]
[359212802,1745820648408,-400.0,0.0003315,2]
[359212803,1745820648418,-400.0,0.0003315,2]
[359212804,1745820648427,-167.35227657,0.0003315,2]
[359212805,1745820648436,-400.0,0.0003315,2]
[359212806,1745820648446,-400.0,0.0003315,2]
[359212807,1745820648455,-400.0,0.0003315,2]
[359212808,1745820648465,-400.0,0.0003315,2]
[359212809,1745820648474,-500.0,0.0003315,2]
[359212810,1745820648483,-400.0,0.0003315,2]
[359212811,1745820648493,-400.0,0.0003315,2]
[359212812,1745820648502,-400.0,0.0003315,2]
[359212813,1745820648511,-400.0,0.0003315,2]
[359212814,1745820648520,-400.0,0.0003315,2]
[359212815,1745820648530,-400.0,0.0003315,2]
[359212816,1745820648540,-235.91813459,0.0003315,2]
[359212817,1745820648551,-400.0,0.0003315,2]
[359212818,1745820648560,-203.50708509,0.0003315,2]
[359212819,1745820648569,-400.0,0.0003315,2]
[359212820,1745820648579,-400.0,0.0003315,2]
[359212821,1745820648588,-400.0,0.0003315,2]
[359212822,1745820648598,-400.0,0.0003315,2]
[359212823,1745820648608,-400.0,0.0003315,2]
[359212824,1745820648618,-400.0,0.0003315,2]
[359212825,1745820648627,-466.67,0.0003315,2]
[359212826,1745820648637,-400.0,0.0003315,2]
[359212827,1745820648646,-400.0,0.0003315,2]
[359212828,1745820648655,-400.0,0.0003315,2]
[359212829,1745820648665,-400.0,0.0003315,2]
[359212830,1745820648674,-400.0,0.0003315,2]
[359212831,1745820648683,-400.0,0.0003315,2]
[359212832,1745820648693,-400.0,0.0003315,2]
[359212833,1745820648702,-400.0,0.0003315,2]
[359212834,1745820648712,-351.68309348,0.0003315,2]
[359212835,1745820648721,-400.0,0.0003315,2]
[359212836,1745820648731,-400.0,0.0003315,2]
[359212837,1745820648740,-400.0,0.0003315,2]
[359212838,1745820648750,-400.0,0.0003315,2]
[359212839,1745820648760,-400.0,0.0003315,2]
[359212840,1745820648770,-400.0,0.0003315,2]
[359212841,1745820648779,-400.0,0.0003315,2]
[359212842,1745820648789,-400.0,0.0003315,2]
[359212843,1745820648801,-177.17980388,0.0003315,2]
[359212844,1745820648811,-400.0,0.0003315,2]
[359212845,1745820648820,-400.0,0.0003315,2]
[359212846,1745820648829,-400.0,0.0003315,2]
[359212847,1745820648839,-400.0,0.0003315,2]
[359212848,1745820648849,-239.97050814,0.0003315,2]
[359212849,1745820648859,-400.0,0.0003315,2]
[359212850,1745820648868,-400.0,0.0003315,2]
[359212851,1745820648879,-400.0,0.0003315,2]
[359212852,1745820648888,-400.0,0.0003315,2]
[359212853,1745820648897,-400.0,0.0003315,2]
[359212854,1745820648907,-400.0,0.0003315,2]
[359212855,1745820648916,-400.0,0.0003315,2]
[359212856,1745820648925,-400.0,0.0003315,2]
[359212857,1745820648935,-400.0,0.0003315,2]
[359212858,1745820648944,-400.0,0.0003315,2]
[359212859,1745820648953,-438.70201773,0.0003315,2]
[359212860,1745820648962,-400.0,0.0003315,2]
[359212861,1745820648972,-400.0,0.0003315,2]
[359212862,1745820648981,-400.0,0.0003315,2]
[359212863,1745820648990,-400.0,0.0003315,2]
[359212864,1745820649000,-400.0,0.0003315,2]
[359212865,1745820649008,-400.0,0.0003315,2]
[359212866,1745820649016,-400.0,0.0003315,2]
[359212867,1745820649025,-1000.0,0.0003315,2]
[359212868,1745820649035,-400.0,0.0003315,2]
[359212869,1745820649044,-400.0,0.0003315,2]
[359212870,1745820649054,-400.0,0.0003315,2]
[359212871,1745820649063,-400.0,0.0003315,2]
[359212872,1745820649072,-400.0,0.0003315,2]
[359212873,1745820649081,-400.0,0.0003315,2]
[359212874,1745820649184,-400.0,0.0003315,2]
[359212875,1745820649194,-400.0,0.0003315,2]
[359212876,1745820649204,-400.0,0.0003315,2]
[359212877,1745820649213,-500.0,0.0003315,2]
[359212878,1745820649223,-400.0,0.0003315,2]
[359212879,1745820649232,-543.8338211,0.0003315,2]
[359212880,1745820649241,-400.0,0.0003315,2]
[359212881,1745820649251,-400.0,0.0003315,2]
[359212882,1745820649261,-400.0,0.0003315,2]
[359212883,1745820649270,-507.95317233,0.0003315,2]
[359212884,1745820649280,-400.0,0.0003315,2]
[359212885,1745820649290,-400.0,0.0003315,2]
[359212886,1745820649300,-400.0,0.0003315,2]
[359212887,1745820649309,-400.0,0.0003315,2]
[359212888,1745820649318,-400.0,0.0003315,2]
[359212889,1745820649327,-400.0,0.0003315,2]
[359212890,1745820649336,-400.0,0.0003315,2]
[359212891,1745820649346,-400.0,0.0003315,2]
[359212892,1745820649355,-400.0,0.0003315,2]
[359212893,1745820649364,-400.0,0.0003315,2]
[359212894,1745820649374,-400.0,0.0003315,2]
[359212895,1745820649383,-400.0,0.0003315,2]
[359212896,1745820649393,-400.0,0.0003315,2]
[359212897,1745820649402,-400.0,0.0003315,2]
[359212898,1745820649411,-400.0,0.0003315,2]
[359212899,1745820649421,-400.0,0.0003315,2]
[359212900,1745820649430,-507.45,0.0003315,2]
[359212901,1745820649441,-400.0,0.0003315,2]
[359212902,1745820649451,-400.0,0.0003315,2]
[359212903,1745820649460,-400.0,0.0003315,2]
[359212904,1745820649469,-400.0,0.0003315,2]
[359212905,1745820649479,-1654.21,0.0003315,2]
[359212906,1745820649488,-306.46733678,0.0003315,2]
[359212907,1745820649498,-400.0,0.0003315,2]
[359212908,1745820649508,-400.0,0.0003315,2]
[359212909,1745820649517,-400.0,0.0003315,2]
[359212910,1745820649527,-400.0,0.0003315,2]
[359212911,1745820649537,-416.6875008,0.0003315,2]
[359212912,1745820649547,-413.95098249,0.0003315,2]
[359212913,1745820649556,-543.83543269,0.0003315,2]
[359212914,1745820649566,-400.0,0.0003315,2]
[359212915,1745820649575,-400.0,0.0003315,2]
[359212916,1745820649585,-400.0,0.0003315,2]
[359212917,1745820649595,-400.0,0.0003315,2]
[359212918,1745820649606,-163.31926674,0.0003315,2]
[359212919,1745820649616,-400.0,0.0003315,2]
[359212920,1745820649625,-400.0,0.0003315,2]
[359212921,1745820649635,-400.0,0.0003315,2]
[359212922,1745820649645,-500.0,0.0003315,2]
[359212923,1745820649655,-400.0,0.0003315,2]
[359212924,1745820649665,-400.0,0.0003315,2]
[359212925,1745820649675,-400.0,0.0003315,2]
[359212926,1745820649684,-525.01,0.0003315,2]
[359212927,1745820649695,-400.0,0.0003315,2]
[359212928,1745820649705,-400.0,0.0003315,2]
[359212929,1745820649714,-316.65230534,0.0003315,2]
[359212930,1745820649724,-400.0,0.0003315,2]
[359212931,1745820649734,-532.64642007,0.0003315,2]
[359212932,1745820649743,-300.0,0.0003315,2]
[359212933,1745820649752,-200.0,0.0003315,2]
[359212934,1745820649762,-500.0,0.0003315,2]
[359212935,1745820649771,-400.0,0.0003315,2]
[359212936,1745820649781,-400.0,0.0003315,2]
[359212937,1745820649791,-400.0,0.0003315,2]
[359212938,1745820649805,-210.08631222,0.0003315,2]
[359212939,1745820649814,-400.0,0.0003315,2]
[359212940,1745820649824,-400.0,0.0003315,2]
[359212941,1745820649834,-272.02400006,0.0003315,2]
[359212942,1745820649845,-400.0,0.0003315,2]
[359212943,1745820649855,-400.0,0.0003315,2]
[359212944,1745820649865,-400.0,0.0003315,2]
[359212945,1745820649875,-400.0,0.0003315,2]
[359212946,1745820649885,-400.0,0.0003315,2]
[359212947,1745820649894,-400.0,0.0003315,2]
[359212948,1745820649904,-400.0,0.0003315,2]
[359212949,1745820649914,-400.0,0.0003315,2]
[359212950,1745820649923,-400.0,0.0003315,2]
[359212951,1745820649933,-400.0,0.0003315,2]
[359212952,1745820649943,-400.0,0.0003315,2]
[359212953,1745820649953,-168.70242786,0.0003315,2]
[359212954,1745820649963,-500.0,0.0003315,2]
[359212955,1745820649972,-400.0,0.0003315,2]
[359212956,1745820649981,-303.63723068,0.0003315,2]
[359212957,1745820649990,-400.0,0.0003315,2]
[359212958,1745820650000,-400.0,0.0003315,2]
[359212959,1745820650009,-400.0,0.0003315,2]
[359212960,1745820650018,-400.0,0.0003315,2]
[359212961,1745820650027,-400.0,0.0003315,2]
[359212962,1745820650036,-400.0,0.0003315,2]
[359212963,1745820650045,-400.0,0.0003315,2]
[359212964,1745820650054,-400.0,0.0003315,2]
[359212965,1745820650063,-400.0,0.0003315,2]
[359212966,1745820650072,-400.0,0.0003315,2]
[359212967,1745820650084,-400.0,0.0003315,2]
[359212968,1745820650101,-400.0,0.0003315,2]
[359212969,1745820650114,-400.0,0.0003315,2]
[359212970,1745820650126,-400.0,0.0003315,2]
[359212971,1745820650140,-314.02184597,0.0003315,2]
[359212972,1745820650154,-262.31535455,0.0003315,2]
[359212973,1745820650168,-400.0,0.0003315,2]
[359212974,1745820650183,-206.4408039,0.0003315,2]
[359212975,1745820650195,-237.24559685,0.0003315,2]
[359212976,1745820650206,-400.0,0.0003315,2]
[359212977,1745820650221,-179.91446015,0.0003315,2]
[359212978,1745820650233,-400.0,0.0003315,2]
[359212979,1745820650247,-364.80347027,0.0003315,2]
[359212980,1745820650261,-400.0,0.0003315,2]
[359212981,1745820650274,-400.0,0.0003315,2]
[359212982,1745820650287,-306.76655876,0.0003315,2]
[359212983,1745820650301,-400.0,0.0003315,2]
[359212984,1745820650314,-400.0,0.0003315,2]
[359212985,1745820650328,-400.0,0.0003315,2]
[359212986,1745820650341,-400.0,0.0003315,2]
[359212987,1745820650353,-400.0,0.0003315,2]
[359212988,1745820650367,-400.0,0.0003315,2]
[359212989,1745820650381,-414.91220191,0.0003315,2]
[359212990,1745820650393,-400.0,0.0003315,2]
[359212991,1745820650405,-400.0,0.0003315,2]
[359212992,1745820650415,-400.0,0.0003315,2]
[359212993,1745820650427,-400.0,0.0003315,2]
[359212994,1745820650442,-400.0,0.0003315,2]
[359212995,1745820650454,-400.0,0.0003315,2]
[359212996,1745820650465,-400.0,0.0003315,2]
[359212997,1745820650476,-400.0,0.0003315,2]
[359212998,1745820650489,-500.0,0.0003315,2]
[359212999,1745820650501,-400.0,0.0003315,2]
[359213000,1745820650512,-400.0,0.0003315,2]
[359213001,1745820650524,-400.0,0.0003315,2]
[359213002,1745820650536,-400.0,0.0003315,2]
[359213003,1745820650549,-400.0,0.0003315,2]
[359213004,1745820650562,-400.0,0.0003315,2]
[359213005,1745820650575,-400.0,0.0003315,2]
[359213006,1745820650587,-400.0,0.0003315,2]
[359213007,1745820650598,-400.0,0.0003315,2]
[359213008,1745820650610,-400.0,0.0003315,2]
[359213009,1745820650622,-400.0,0.0003315,2]
[359213010,1745820650634,-400.0,0.0003315,2]
[359213011,1745820650646,-500.0,0.0003315,2]
[359213012,1745820650658,-400.0,0.0003315,2]
[359213013,1745820650670,-400.0,0.0003315,2]
[359213014,1745820650682,-400.0,0.0003315,2]
[359213015,1745820650693,-400.0,0.0003315,2]
[359213016,1745820650705,-400.0,0.0003315,2]
[359213017,1745820650717,-400.0,0.0003315,2]
[359213018,1745820650729,-400.0,0.0003315,2]
[359213019,1745820650741,-400.0,0.0003315,2]
[359213020,1745820650753,-400.0,0.0003315,2]
[359213021,1745820650765,-437.26,0.0003315,2]
[359213022,1745820650777,-400.0,0.0003315,2]
[359213023,1745820650789,-400.0,0.0003315,2]
[359213024,1745820650805,-400.0,0.0003315,2]
[359213025,1745820650816,-400.0,0.0003315,2]
[359213026,1745820650828,-400.0,0.0003315,2]
[359213027,1745820650840,-400.0,0.0003315,2]
[359213028,1745820650853,-500.0,0.0003315,2]
[359213029,1745820650866,-518.9688798,0.0003315,2]
[359213030,1745820650879,-400.0,0.0003315,2]
[359213031,1745820650891,-400.0,0.0003315,2]
[359213032,1745820650904,-400.0,0.0003315,2]
[359213033,1745820650916,-400.0,0.0003315,2]
[359213034,1745820650928,-400.0,0.0003315,2]
[359213035,1745820650940,-400.0,0.0003315,2]
[359213036,1745820650951,-400.0,0.0003315,2]
[359213037,1745820650963,-400.0,0.0003315,2]
[359213038,1745820650975,-400.0,0.0003315,2]
[359213039,1745820650987,-400.0,0.0003315,2]
[359213040,1745820650998,-400.0,0.0003315,2]
[359213041,1745820651010,-400.0,0.0003315,2]
[359213042,1745820651023,-804.83,0.0003315,2]
[359213043,1745820651035,-400.0,0.0003315,2]
[359213044,1745820651048,-400.0,0.0003315,2]
[359213045,1745820651061,-400.0,0.0003315,2]
[359213046,1745820651073,-400.0,0.0003315,2]
[359213047,1745820651086,-400.0,0.0003315,2]
[359213048,1745820651099,-713.88,0.0003315,2]
[359213049,1745820651111,-400.0,0.0003315,2]
[359213050,1745820651123,-400.0,0.0003315,2]
[359213051,1745820651136,-400.0,0.0003315,2]
[359213052,1745820651151,-400.0,0.0003315,2]
[359213053,1745820651163,-400.0,0.0003315,2]
[359213054,1745820651174,-692.25,0.0003315,2]
[359213055,1745820651184,-400.0,0.0003315,2]
[359213056,1745820651194,-400.0,0.0003315,2]
[359213057,1745820651310,-400.0,0.0003315,2]
[359213058,1745820651358,-400.0,0.0003315,2]
[359213059,1745820651369,-400.0,0.0003315,2]
[359213060,1745820651379,-400.0,0.0003315,2]
[359213061,1745820651390,-400.0,0.0003315,2]
[359213062,1745820651400,-400.0,0.0003315,2]
[359213063,1745820651410,-416.66,0.0003315,2]
[359213064,1745820651420,-400.0,0.0003315,2]
[359213065,1745820651431,-400.0,0.0003315,2]
[359213066,1745820651442,-420.34519825,0.0003315,2]
[359213067,1745820651450,-500.0,0.0003315,2]
[359213068,1745820651459,-400.0,0.0003315,2]
[359213069,1745820651469,-400.0,0.0003315,2]
[359213070,1745820651479,-400.0,0.0003315,2]
[359213071,1745820651489,-400.0,0.0003315,2]
[359213072,1745820651498,-400.0,0.0003315,2]
[359213073,1745820651508,-400.0,0.0003315,2]
[359213074,1745820651519,-400.0,0.0003315,2]
[359213075,1745820651529,-400.0,0.0003315,2]
[359213076,1745820651539,-400.0,0.0003315,2]
[359213077,1745820651549,-400.0,0.0003315,2]
[359213078,1745820651558,-400.0,0.0003315,2]
[359213079,1745820651568,-400.0,0.0003315,2]
[359213080,1745820651577,-1328.7,0.0003315,2]
[359213081,1745820651587,-400.0,0.0003315,2]
[359213082,1745820651596,-995.567572,0.00033165,2]
[359213083,1745820651606,-262.71423197,0.00033176,11]
[359213084,1745820651615,-200.0,0.00033424,2]
[359213085,1745820651625,-300.0,0.00033424,2]
[359213086,1745820651634,-305.19292432,0.00033424,2]
[359213087,1745820651643,-322.87482789,0.00033424,2]
[359213088,1745820651653,-305.22201579,0.00033424,2]
[359213089,1745820651662,-400.0,0.00033424,2]
[359213090,1745820651671,-400.0,0.00033424,2]
[359213091,1745820651681,-404.81182218,0.00033424,2]
[359213092,1745820651691,-347.93,0.00033424,2]
[359213093,1745820651700,-500.0,0.00033424,2]
[359213094,1745820651710,-500.0,0.00033424,2]
[359213095,1745820651719,-200.0,0.00033424,2]
[359213096,1745820651729,-400.0,0.00033424,2]
[359213097,1745820651739,-400.0,0.00033424,2]
[359213098,1745820651749,-214.88618251,0.00033424,2]
[359213099,1745820651759,-400.0,0.00033424,2]
[359213100,1745820651768,-304.41861147,0.00033424,2]
[359213101,1745820651777,-400.0,0.00033424,2]
[359213102,1745820651787,-305.21669081,0.00033424,2]